[Event "Titled Tuesday Blitz June 14 Early 2022"]
[White "Puranik, Abhimanyu"]
[Black "Matlakov, Maxim"]
[WhiteFideId "5061245"]
[BlackFideId "4168003"]
[WhiteElo "2520"]
[BlackElo "2669"]
[Result "1-0"]
[Round "03"]
[TimeControl "180+1"]
[Date "2022.06.14"]
[WhiteClock "0:00:05"]
[BlackClock "0:00:06"]

1. e4 {[%clk 0:03:00]}  e5 {[%clk 0:02:59]} 2. Nf3 {[%clk 0:03:00]}  Nc6 {[%clk 0:03:00]} 3. Bb5 {[%clk 0:03:00]}  a6 {[%clk 0:02:59]} 4. Ba4 {[%clk 0:03:00]}  Nf6 {[%clk 0:02:58]} 5. O-O {[%clk 0:03:00]}  Be7 {[%clk 0:02:57]} 6. d3 {[%clk 0:03:00]}  d6 {[%clk 0:02:57]} 7. Bd2 {[%clk 0:02:59]}  O-O {[%clk 0:02:56]} 8. h3 {[%clk 0:02:57]}  h6 {[%clk 0:02:43]} 9. Re1 {[%clk 0:02:54]}  Re8 {[%clk 0:02:43]} 10. a3 {[%clk 0:02:53]}  Bf8 {[%clk 0:02:43]} 11. c4 {[%clk 0:02:50]}  Bd7 {[%clk 0:02:37]} 12. Nc3 {[%clk 0:02:49]}  Ne7 {[%clk 0:02:30]} 13. Bxd7 {[%clk 0:02:49]}  Qxd7 {[%clk 0:02:31]} 14. Nd5 {[%clk 0:02:38]}  Nfxd5 {[%clk 0:02:30]} 15. cxd5 {[%clk 0:02:32]}  c6 {[%clk 0:02:29]} 16. dxc6 {[%clk 0:02:27]}  Nxc6 {[%clk 0:02:28]} 17. Qb3 {[%clk 0:02:25]}  Red8 {[%clk 0:02:02]} 18. Bc3 {[%clk 0:02:21]}  Rac8 {[%clk 0:01:51]} 19. Rad1 {[%clk 0:02:09]}  b5 {[%clk 0:01:32]} 20. d4 {[%clk 0:02:06]}  exd4 {[%clk 0:01:32]} 21. Nxd4 {[%clk 0:01:57]}  Nxd4 {[%clk 0:01:31]} 22. Bxd4 {[%clk 0:01:57]}  Qe6 {[%clk 0:01:30]} 23. Qg3 {[%clk 0:01:51]}  Rc4 {[%clk 0:01:26]} 24. f4 {[%clk 0:01:22]}  Qg6 {[%clk 0:01:14]} 25. Qf2 {[%clk 0:01:15]}  Re8 {[%clk 0:01:11]} 26. f5 {[%clk 0:01:14]}  Qg5 {[%clk 0:01:09]} 27. b3 {[%clk 0:01:13]}  Rc7 {[%clk 0:01:03]} 28. Re3 {[%clk 0:00:45]}  Qh5 {[%clk 0:00:59]} 29. g4 {[%clk 0:00:40]}  Qg5 {[%clk 0:00:58]} 30. Kh2 {[%clk 0:00:30]}  Rec8 {[%clk 0:00:57]} 31. Re2 {[%clk 0:00:25]}  Rc6 {[%clk 0:00:22]} 32. Rg1 {[%clk 0:00:22]}  Qd8 {[%clk 0:00:20]} 33. Be3 {[%clk 0:00:18]}  Qc7 {[%clk 0:00:20]} 34. g5 {[%clk 0:00:18]}  hxg5 {[%clk 0:00:20]} 35. Bxg5 {[%clk 0:00:18]}  Rc2 {[%clk 0:00:20]} 36. Rg2 {[%clk 0:00:15]}  Rxe2 {[%clk 0:00:19]} 37. Qxe2 {[%clk 0:00:15]}  d5+ {[%clk 0:00:19]} 38. e5 {[%clk 0:00:15]}  d4 {[%clk 0:00:20]} 39. Bf4 {[%clk 0:00:15]}  Qc3 {[%clk 0:00:18]} 40. f6 {[%clk 0:00:14]}  d3 {[%clk 0:00:16]} 41. Qg4 {[%clk 0:00:10]}  g6 {[%clk 0:00:10]} 42. e6 {[%clk 0:00:07]}  Qxf6 {[%clk 0:00:10]} 43. exf7+ {[%clk 0:00:07]}  Qxf7 {[%clk 0:00:11]} 44. Qxc8 {[%clk 0:00:03]}  Qxf4+ {[%clk 0:00:11]} 45. Kg1 {[%clk 0:00:02]}  Qe3+ {[%clk 0:00:08]} 46. Kh2 {[%clk 0:00:01]}  Qf4+ {[%clk 0:00:08]} 47. Kg1 {[%clk 0:00:01]}  Qe3+ {[%clk 0:00:09]} 48. Rf2 {[%clk 0:00:02]}  Qg3+ {[%clk 0:00:05]} 49. Kf1 {[%clk 0:00:02]}  Qd6 {[%clk 0:00:05]} 50. Qe8 {[%clk 0:00:02]}  d2 {[%clk 0:00:04]} 51. Qf7+ {[%clk 0:00:02]}  Kh8 {[%clk 0:00:04]} 52. Qxf8+ {[%clk 0:00:03]}  Qxf8 {[%clk 0:00:05]} 53. Rxf8+ {[%clk 0:00:04]}  Kg7 {[%clk 0:00:06]} 54. Rd8 {[%clk 0:00:05]} 1-0


[Site "https://www.chess.com"]

[Event "Titled Tuesday Blitz June 14 Early 2022"]
[White "Siniauski, Artsiom"]
[Black "Sarana, Alexey"]
[WhiteFideId "13512269"]
[BlackFideId "24133795"]
[WhiteElo "2187"]
[BlackElo "2666"]
[Result "0-1"]
[Round "03"]
[TimeControl "180+1"]
[Date "2022.06.14"]
[WhiteClock "0:00:03"]
[BlackClock "0:00:49"]

1. e4 {[%clk 0:03:00]}  c5 {[%clk 0:03:00]} 2. Nf3 {[%clk 0:03:00]}  d6 {[%clk 0:03:01]} 3. c3 {[%clk 0:02:57]}  Nf6 {[%clk 0:03:01]} 4. Be2 {[%clk 0:02:58]}  g6 {[%clk 0:03:01]} 5. O-O {[%clk 0:02:58]}  Bg7 {[%clk 0:03:01]} 6. Re1 {[%clk 0:02:59]}  O-O {[%clk 0:03:01]} 7. Bf1 {[%clk 0:03:00]}  e5 {[%clk 0:02:59]} 8. h3 {[%clk 0:03:00]}  Nc6 {[%clk 0:02:59]} 9. a4 {[%clk 0:03:00]}  d5 {[%clk 0:02:58]} 10. exd5 {[%clk 0:02:54]}  Qxd5 {[%clk 0:02:59]} 11. d3 {[%clk 0:02:52]}  Rd8 {[%clk 0:02:58]} 12. Nbd2 {[%clk 0:02:43]}  Bf5 {[%clk 0:02:57]} 13. Nc4 {[%clk 0:02:24]}  e4 {[%clk 0:02:36]} 14. Ne3 {[%clk 0:02:23]}  Qd7 {[%clk 0:02:36]} 15. dxe4 {[%clk 0:02:21]}  Qxd1 {[%clk 0:02:33]} 16. Rxd1 {[%clk 0:02:22]}  Rxd1 {[%clk 0:02:30]} 17. Nxd1 {[%clk 0:02:23]}  Nxe4 {[%clk 0:02:30]} 18. Bf4 {[%clk 0:02:05]}  Rd8 {[%clk 0:02:27]} 19. Ne3 {[%clk 0:02:05]}  Be6 {[%clk 0:02:27]} 20. a5 {[%clk 0:01:56]}  Nd2 {[%clk 0:02:18]} 21. Nxd2 {[%clk 0:01:51]}  Rxd2 {[%clk 0:02:19]} 22. Nc4 {[%clk 0:01:25]}  Rd7 {[%clk 0:02:18]} 23. Nd6 {[%clk 0:01:21]}  Be5 {[%clk 0:02:08]} 24. Bxe5 {[%clk 0:01:19]}  Nxe5 {[%clk 0:02:09]} 25. Ne4 {[%clk 0:01:18]}  Rc7 {[%clk 0:02:08]} 26. Nf6+ {[%clk 0:01:13]}  Kh8 {[%clk 0:02:04]} 27. a6 {[%clk 0:01:11]}  b6 {[%clk 0:02:03]} 28. Rd1 {[%clk 0:01:11]}  Rc8 {[%clk 0:02:02]} 29. Ne4 {[%clk 0:01:05]}  Kg8 {[%clk 0:01:55]} 30. f4 {[%clk 0:01:04]}  Nc6 {[%clk 0:01:52]} 31. Bb5 {[%clk 0:01:01]}  Na5 {[%clk 0:01:51]} 32. Kf2 {[%clk 0:00:57]}  Bf5 {[%clk 0:01:26]} 33. Nf6+ {[%clk 0:00:41]}  Kg7 {[%clk 0:01:24]} 34. Nd5 {[%clk 0:00:40]}  Rd8 {[%clk 0:01:21]} 35. Ne3 {[%clk 0:00:36]}  Rxd1 {[%clk 0:01:19]} 36. Nxd1 {[%clk 0:00:37]}  Kf6 {[%clk 0:01:19]} 37. Ne3 {[%clk 0:00:37]}  Be6 {[%clk 0:01:19]} 38. Kf3 {[%clk 0:00:36]}  Nb3 {[%clk 0:01:17]} 39. g4 {[%clk 0:00:35]}  Nd2+ {[%clk 0:01:08]} 40. Ke2 {[%clk 0:00:35]}  Ne4 {[%clk 0:01:09]} 41. g5+ {[%clk 0:00:34]}  Ke7 {[%clk 0:01:08]} 42. h4 {[%clk 0:00:35]}  Nd6 {[%clk 0:01:08]} 43. c4 {[%clk 0:00:17]}  Nxb5 {[%clk 0:01:01]} 44. cxb5 {[%clk 0:00:18]}  Bd7 {[%clk 0:01:01]} 45. Nd5+ {[%clk 0:00:14]}  Kd6 {[%clk 0:01:01]} 46. Nc3 {[%clk 0:00:15]}  c4 {[%clk 0:01:01]} 47. Ke3 {[%clk 0:00:15]}  Kc5 {[%clk 0:01:01]} 48. Ne4+ {[%clk 0:00:16]}  Kxb5 {[%clk 0:00:58]} 49. Nf6 {[%clk 0:00:17]}  Bf5 {[%clk 0:00:52]} 50. Nxh7 {[%clk 0:00:15]}  Kxa6 {[%clk 0:00:52]} 51. Kd4 {[%clk 0:00:11]}  Kb5 {[%clk 0:00:52]} 52. Kc3 {[%clk 0:00:11]}  Kc5 {[%clk 0:00:51]} 53. Nf6 {[%clk 0:00:11]}  b5 {[%clk 0:00:51]} 54. b4+ {[%clk 0:00:04]}  cxb3 {[%clk 0:00:51]} 55. Kxb3 {[%clk 0:00:05]}  a5 {[%clk 0:00:52]} 56. h5 {[%clk 0:00:04]}  gxh5 {[%clk 0:00:52]} 57. Nxh5 {[%clk 0:00:05]}  a4+ {[%clk 0:00:51]} 58. Ka3 {[%clk 0:00:06]}  Bd7 {[%clk 0:00:51]} 59. Ng3 {[%clk 0:00:04]}  b4+ {[%clk 0:00:51]} 60. Kb2 {[%clk 0:00:05]}  a3+ {[%clk 0:00:51]} 61. Kb1 {[%clk 0:00:03]}  b3 {[%clk 0:00:51]} 62. f5 {[%clk 0:00:04]}  Bb5 {[%clk 0:00:47]} 63. Ne4+ {[%clk 0:00:02]}  Kd4 {[%clk 0:00:47]} 64. Nf2 {[%clk 0:00:03]}  Bd7 {[%clk 0:00:46]} 65. Ka1 {[%clk 0:00:01]}  Bxf5 {[%clk 0:00:47]} 66. g6 {[%clk 0:00:02]}  b2+ {[%clk 0:00:47]} 67. Ka2 {[%clk 0:00:02]}  b1=Q+ {[%clk 0:00:48]} 68. Kxa3 {[%clk 0:00:03]}  Kc4 {[%clk 0:00:48]} 69. Nd3 {[%clk 0:00:03]}  Qb3# {[%clk 0:00:49]} 0-1


[Site "https://www.chess.com"]

[Event "Titled Tuesday Blitz June 14 Early 2022"]
[White "Suleymanli, Aydin"]
[Black "Artemenko, Oleg"]
[WhiteFideId "13413937"]
[BlackFideId "14201798"]
[WhiteElo "2481"]
[BlackElo "2287"]
[Result "1-0"]
[Round "03"]
[TimeControl "180+1"]
[Date "2022.06.14"]
[WhiteClock "0:00:18"]
[BlackClock "0:01:06"]

1. e4 {[%clk 0:03:00]}  e6 {[%clk 0:02:58]} 2. d3 {[%clk 0:02:54]}  d5 {[%clk 0:02:58]} 3. Nd2 {[%clk 0:02:55]}  Nf6 {[%clk 0:02:58]} 4. g3 {[%clk 0:02:53]}  c5 {[%clk 0:02:59]} 5. Bg2 {[%clk 0:02:54]}  Nc6 {[%clk 0:02:59]} 6. Ngf3 {[%clk 0:02:54]}  Be7 {[%clk 0:02:59]} 7. O-O {[%clk 0:02:55]}  O-O {[%clk 0:03:00]} 8. e5 {[%clk 0:02:51]}  Nd7 {[%clk 0:02:59]} 9. Re1 {[%clk 0:02:51]}  b5 {[%clk 0:02:59]} 10. c4 {[%clk 0:02:46]}  bxc4 {[%clk 0:02:57]} 11. dxc4 {[%clk 0:02:47]}  Nb6 {[%clk 0:02:57]} 12. b3 {[%clk 0:02:23]}  Rb8 {[%clk 0:02:53]} 13. h4 {[%clk 0:02:13]}  dxc4 {[%clk 0:02:49]} 14. bxc4 {[%clk 0:02:06]}  Ba6 {[%clk 0:02:48]} 15. Bf1 {[%clk 0:02:03]}  Qc7 {[%clk 0:02:45]} 16. Qe2 {[%clk 0:01:48]}  Rfd8 {[%clk 0:02:40]} 17. Qe4 {[%clk 0:01:48]}  Bb7 {[%clk 0:02:37]} 18. Qg4 {[%clk 0:01:47]}  Nb4 {[%clk 0:02:31]} 19. Ne4 {[%clk 0:01:11]}  Bxe4 {[%clk 0:02:14]} 20. Rxe4 {[%clk 0:01:07]}  Nd7 {[%clk 0:02:06]} 21. Bh6 {[%clk 0:01:03]}  Bf8 {[%clk 0:02:04]} 22. h5 {[%clk 0:00:56]}  Nc2 {[%clk 0:01:59]} 23. Rc1 {[%clk 0:00:43]}  Nd4 {[%clk 0:01:59]} 24. Nxd4 {[%clk 0:00:44]}  cxd4 {[%clk 0:02:00]} 25. Bxg7 {[%clk 0:00:44]}  Bxg7 {[%clk 0:01:54]} 26. h6 {[%clk 0:00:44]}  Kf8 {[%clk 0:01:55]} 27. Qxg7+ {[%clk 0:00:43]}  Ke7 {[%clk 0:01:55]} 28. Rf4 {[%clk 0:00:34]}  Rf8 {[%clk 0:01:47]} 29. Re1 {[%clk 0:00:33]}  Qa5 {[%clk 0:01:37]} 30. Rd1 {[%clk 0:00:20]}  Qxe5 {[%clk 0:01:33]} 31. Qxh7 {[%clk 0:00:20]}  Nf6 {[%clk 0:01:23]} 32. Qd3 {[%clk 0:00:20]}  Rh8 {[%clk 0:01:20]} 33. Qa3+ {[%clk 0:00:17]}  Ke8 {[%clk 0:01:17]} 34. Bg2 {[%clk 0:00:17]}  Rc8 {[%clk 0:01:08]} 35. Rfxd4 {[%clk 0:00:17]}  Rxh6 {[%clk 0:01:06]} 36. Bc6+ {[%clk 0:00:18]} 1-0


[Site "https://www.chess.com"]

[Event "Titled Tuesday Blitz June 14 Early 2022"]
[White "Taboas Rodriguez, Daniel"]
[Black "Samadov, Read"]
[WhiteFideId "2208466"]
[BlackFideId "13417444"]
[WhiteElo "2429"]
[BlackElo "2084"]
[Result "1-0"]
[Round "03"]
[TimeControl "180+1"]
[Date "2022.06.14"]
[WhiteClock "0:00:52"]
[BlackClock "0:00:09"]

1. d4 {[%clk 0:03:00]}  Nf6 {[%clk 0:02:59]} 2. Nf3 {[%clk 0:03:00]}  e6 {[%clk 0:02:59]} 3. c4 {[%clk 0:03:00]}  d5 {[%clk 0:03:00]} 4. Bg5 {[%clk 0:02:59]}  Bb4+ {[%clk 0:02:57]} 5. Nc3 {[%clk 0:02:59]}  h6 {[%clk 0:02:56]} 6. Bxf6 {[%clk 0:02:59]}  Qxf6 {[%clk 0:02:57]} 7. e3 {[%clk 0:03:00]}  O-O {[%clk 0:02:57]} 8. Rc1 {[%clk 0:03:00]}  Nc6 {[%clk 0:02:57]} 9. a3 {[%clk 0:02:54]}  Bxc3+ {[%clk 0:02:56]} 10. Rxc3 {[%clk 0:02:54]}  dxc4 {[%clk 0:02:55]} 11. Bxc4 {[%clk 0:02:55]}  e5 {[%clk 0:02:56]} 12. dxe5 {[%clk 0:02:50]}  Nxe5 {[%clk 0:02:54]} 13. Nxe5 {[%clk 0:02:50]}  Qxe5 {[%clk 0:02:55]} 14. O-O {[%clk 0:02:51]}  c6 {[%clk 0:02:55]} 15. Qe2 {[%clk 0:02:41]}  Be6 {[%clk 0:02:54]} 16. Rd1 {[%clk 0:02:39]}  Rfd8 {[%clk 0:02:53]} 17. Bxe6 {[%clk 0:02:37]}  Qxe6 {[%clk 0:02:53]} 18. Rcd3 {[%clk 0:02:37]}  Qf6 {[%clk 0:02:48]} 19. b4 {[%clk 0:02:36]}  g6 {[%clk 0:02:44]} 20. g3 {[%clk 0:02:34]}  h5 {[%clk 0:02:44]} 21. h4 {[%clk 0:02:34]}  Rxd3 {[%clk 0:02:41]} 22. Qxd3 {[%clk 0:02:34]}  a5 {[%clk 0:02:41]} 23. Qd4 {[%clk 0:02:24]}  Qf3 {[%clk 0:02:33]} 24. Ra1 {[%clk 0:01:59]}  axb4 {[%clk 0:02:23]} 25. axb4 {[%clk 0:02:00]}  Rxa1+ {[%clk 0:02:23]} 26. Qxa1 {[%clk 0:02:01]}  b5 {[%clk 0:02:20]} 27. Qc3 {[%clk 0:01:57]}  Qd1+ {[%clk 0:02:13]} 28. Kg2 {[%clk 0:01:56]}  Qd5+ {[%clk 0:02:14]} 29. f3 {[%clk 0:01:53]}  Kf8 {[%clk 0:02:10]} 30. e4 {[%clk 0:01:50]}  Qa2+ {[%clk 0:02:09]} 31. Kf1 {[%clk 0:01:50]}  Qe6 {[%clk 0:02:04]} 32. Ke2 {[%clk 0:01:47]}  Ke7 {[%clk 0:02:03]} 33. Ke3 {[%clk 0:01:47]}  Qd6 {[%clk 0:02:01]} 34. f4 {[%clk 0:01:43]}  Kd7 {[%clk 0:02:01]} 35. Qd4 {[%clk 0:01:35]}  Qxd4+ {[%clk 0:01:33]} 36. Kxd4 {[%clk 0:01:36]}  Kd6 {[%clk 0:01:30]} 37. e5+ {[%clk 0:01:19]}  Kd7 {[%clk 0:01:22]} 38. Kc5 {[%clk 0:01:12]}  Kc7 {[%clk 0:01:22]} 39. Kd4 {[%clk 0:01:12]}  Kb6 {[%clk 0:01:22]} 40. g4 {[%clk 0:00:53]}  hxg4 {[%clk 0:00:59]} 41. f5 {[%clk 0:00:52]}  g3 {[%clk 0:00:59]} 42. Ke3 {[%clk 0:00:52]}  Kc7 {[%clk 0:00:13]} 43. e6 {[%clk 0:00:52]}  Kd6 {[%clk 0:00:09]} 44. exf7 {[%clk 0:00:52]}  Ke7 {[%clk 0:00:09]} 45. fxg6 {[%clk 0:00:52]}  g2 {[%clk 0:00:07]} 46. Kf2 {[%clk 0:00:52]}  c5 {[%clk 0:00:07]} 47. bxc5 {[%clk 0:00:52]}  b4 {[%clk 0:00:08]} 48. c6 {[%clk 0:00:52]}  b3 {[%clk 0:00:08]} 49. c7 {[%clk 0:00:52]}  b2 {[%clk 0:00:09]} 50. f8=Q+ {[%clk 0:00:52]} 1-0


[Site "https://www.chess.com"]

[Event "Titled Tuesday Blitz June 14 Early 2022"]
[White "Terry, Renato"]
[Black "Gaehwiler, Gabriel"]
[WhiteFideId "3803457"]
[BlackFideId "1314530"]
[WhiteElo "2577"]
[BlackElo "2383"]
[Result "1-0"]
[Round "03"]
[TimeControl "180+1"]
[Date "2022.06.14"]
[WhiteClock "0:00:06"]
[BlackClock "0:00:03"]

1. d4 {[%clk 0:03:00]}  Nf6 {[%clk 0:02:58]} 2. Nf3 {[%clk 0:03:01]}  g6 {[%clk 0:02:58]} 3. Bg5 {[%clk 0:03:01]}  Bg7 {[%clk 0:02:58]} 4. c3 {[%clk 0:03:01]}  O-O {[%clk 0:02:57]} 5. Nbd2 {[%clk 0:03:02]}  d5 {[%clk 0:02:55]} 6. e3 {[%clk 0:03:02]}  c6 {[%clk 0:02:54]} 7. Be2 {[%clk 0:02:59]}  Bg4 {[%clk 0:02:54]} 8. Qb3 {[%clk 0:02:57]}  Qb6 {[%clk 0:02:53]} 9. h3 {[%clk 0:02:58]}  Bxf3 {[%clk 0:02:51]} 10. Bxf3 {[%clk 0:02:59]}  Nbd7 {[%clk 0:02:51]} 11. O-O {[%clk 0:02:58]}  Rfe8 {[%clk 0:02:51]} 12. a4 {[%clk 0:02:44]}  Qxb3 {[%clk 0:02:46]} 13. Nxb3 {[%clk 0:02:45]}  a5 {[%clk 0:02:47]} 14. Rfd1 {[%clk 0:02:19]}  e5 {[%clk 0:02:42]} 15. Bh4 {[%clk 0:02:19]}  Rec8 {[%clk 0:02:29]} 16. Bg3 {[%clk 0:02:18]}  Ne8 {[%clk 0:02:18]} 17. e4 {[%clk 0:02:04]}  dxe4 {[%clk 0:02:08]} 18. Bxe4 {[%clk 0:02:05]}  exd4 {[%clk 0:01:42]} 19. Nxd4 {[%clk 0:02:06]}  Nc5 {[%clk 0:01:42]} 20. Bc2 {[%clk 0:02:07]}  Rd8 {[%clk 0:01:40]} 21. Nf3 {[%clk 0:01:59]}  Nf6 {[%clk 0:01:34]} 22. Kf1 {[%clk 0:01:42]}  Nd5 {[%clk 0:01:30]} 23. Ne5 {[%clk 0:01:40]}  Nb6 {[%clk 0:01:05]} 24. Nd3 {[%clk 0:01:15]}  Nxd3 {[%clk 0:01:02]} 25. Bxd3 {[%clk 0:01:16]}  Rd7 {[%clk 0:00:59]} 26. Be2 {[%clk 0:01:13]}  Rad8 {[%clk 0:00:57]} 27. Rxd7 {[%clk 0:01:12]}  Rxd7 {[%clk 0:00:58]} 28. Bf4 {[%clk 0:01:12]}  Nd5 {[%clk 0:00:56]} 29. Bg5 {[%clk 0:01:04]}  Bf6 {[%clk 0:00:55]} 30. Bc1 {[%clk 0:01:02]}  Kf8 {[%clk 0:00:50]} 31. Bc4 {[%clk 0:01:01]}  Nb6 {[%clk 0:00:49]} 32. Bb3 {[%clk 0:01:01]}  Be7 {[%clk 0:00:47]} 33. Bh6+ {[%clk 0:01:01]}  Ke8 {[%clk 0:00:47]} 34. Re1 {[%clk 0:01:01]}  Nd5 {[%clk 0:00:47]} 35. g3 {[%clk 0:00:47]}  Kd8 {[%clk 0:00:47]} 36. h4 {[%clk 0:00:47]}  Bf6 {[%clk 0:00:45]} 37. Kg2 {[%clk 0:00:42]}  Re7 {[%clk 0:00:42]} 38. Rd1 {[%clk 0:00:40]}  Rd7 {[%clk 0:00:42]} 39. Kf3 {[%clk 0:00:41]}  Be7 {[%clk 0:00:38]} 40. h5 {[%clk 0:00:37]}  f5 {[%clk 0:00:36]} 41. hxg6 {[%clk 0:00:36]}  hxg6 {[%clk 0:00:37]} 42. Bc1 {[%clk 0:00:35]}  Nf6 {[%clk 0:00:31]} 43. Rh1 {[%clk 0:00:30]}  Bc5 {[%clk 0:00:24]} 44. Bg5 {[%clk 0:00:30]}  Be7 {[%clk 0:00:18]} 45. Be6 {[%clk 0:00:14]}  Rd3+ {[%clk 0:00:17]} 46. Ke2 {[%clk 0:00:14]}  Rd6 {[%clk 0:00:16]} 47. Rh8+ {[%clk 0:00:14]}  Ne8 {[%clk 0:00:16]} 48. Bf7 {[%clk 0:00:14]}  Bxg5 {[%clk 0:00:16]} 49. Rxe8+ {[%clk 0:00:14]}  Kc7 {[%clk 0:00:16]} 50. f4 {[%clk 0:00:14]}  Bd8 {[%clk 0:00:14]} 51. Rg8 {[%clk 0:00:12]}  b5 {[%clk 0:00:06]} 52. axb5 {[%clk 0:00:13]}  cxb5 {[%clk 0:00:07]} 53. Bxg6 {[%clk 0:00:12]}  Rf6 {[%clk 0:00:07]} 54. Bh5 {[%clk 0:00:06]}  b4 {[%clk 0:00:05]} 55. cxb4 {[%clk 0:00:05]}  axb4 {[%clk 0:00:06]} 56. Kd3 {[%clk 0:00:06]}  Be7 {[%clk 0:00:06]} 57. Rg6 {[%clk 0:00:05]}  Rf8 {[%clk 0:00:04]} 58. b3 {[%clk 0:00:05]}  Rd8+ {[%clk 0:00:04]} 59. Kc4 {[%clk 0:00:05]}  Rd2 {[%clk 0:00:04]} 60. Rg7 {[%clk 0:00:05]}  Kd8 {[%clk 0:00:04]} 61. Rf7 {[%clk 0:00:05]}  Rc2+ {[%clk 0:00:03]} 62. Kb5 {[%clk 0:00:05]}  Rc3 {[%clk 0:00:03]} 63. Rxf5 {[%clk 0:00:05]}  Rxb3 {[%clk 0:00:03]} 64. g4 {[%clk 0:00:06]}  Rc3 {[%clk 0:00:03]} 65. Ka4 {[%clk 0:00:05]}  b3 {[%clk 0:00:04]} 66. Rd5+ {[%clk 0:00:03]}  Kc7 {[%clk 0:00:03]} 67. Rb5 {[%clk 0:00:04]}  Rc4+ {[%clk 0:00:02]} 68. Kxb3 {[%clk 0:00:05]}  Rxf4 {[%clk 0:00:03]} 69. Kc3 {[%clk 0:00:04]}  Kd6 {[%clk 0:00:02]} 70. Rb6+ {[%clk 0:00:04]}  Ke5 {[%clk 0:00:02]} 71. Kd3 {[%clk 0:00:05]}  Rf3+ {[%clk 0:00:03]} 72. Ke2 {[%clk 0:00:06]}  Ra3 {[%clk 0:00:03]} 73. Bf7 {[%clk 0:00:04]}  Bg5 {[%clk 0:00:04]} 74. Rb5+ {[%clk 0:00:04]}  Kf4 {[%clk 0:00:04]} 75. Bh5 {[%clk 0:00:04]}  Re3+ {[%clk 0:00:04]} 76. Kd1 {[%clk 0:00:04]}  Rd3+ {[%clk 0:00:04]} 77. Kc2 {[%clk 0:00:04]}  Rd6 {[%clk 0:00:02]} 78. Rf5+ {[%clk 0:00:04]}  Kg3 {[%clk 0:00:02]} 79. Rxg5 {[%clk 0:00:05]}  Kh4 {[%clk 0:00:03]} 80. Rf5 {[%clk 0:00:05]}  Rh6 {[%clk 0:00:03]} 81. Kd3 {[%clk 0:00:06]} 1-0


[Site "https://www.chess.com"]

[Event "Titled Tuesday Blitz June 14 Early 2022"]
[White "Xiong, Jeffery"]
[Black "Karacsonyi, Gellert"]
[WhiteFideId "2047640"]
[BlackFideId "764620"]
[WhiteElo "2714"]
[BlackElo "2187"]
[Result "1-0"]
[Round "03"]
[TimeControl "180+1"]
[Date "2022.06.14"]
[WhiteClock "0:01:20"]
[BlackClock "0:00:06"]

1. e4 {[%clk 0:03:00]}  c5 {[%clk 0:02:59]} 2. Nf3 {[%clk 0:03:01]}  Nc6 {[%clk 0:03:00]} 3. Nc3 {[%clk 0:03:00]}  g6 {[%clk 0:03:00]} 4. d4 {[%clk 0:03:00]}  cxd4 {[%clk 0:03:00]} 5. Nxd4 {[%clk 0:03:01]}  Bg7 {[%clk 0:02:59]} 6. Be3 {[%clk 0:03:02]}  Nf6 {[%clk 0:02:59]} 7. Bc4 {[%clk 0:03:03]}  O-O {[%clk 0:03:00]} 8. Bb3 {[%clk 0:03:02]}  Re8 {[%clk 0:03:00]} 9. O-O {[%clk 0:02:52]}  d6 {[%clk 0:03:00]} 10. h3 {[%clk 0:02:45]}  Na5 {[%clk 0:03:00]} 11. Qd2 {[%clk 0:02:35]}  b6 {[%clk 0:02:57]} 12. Bh6 {[%clk 0:02:34]}  Nxb3 {[%clk 0:02:54]} 13. axb3 {[%clk 0:02:34]}  Bb7 {[%clk 0:02:54]} 14. Bxg7 {[%clk 0:02:35]}  Kxg7 {[%clk 0:02:54]} 15. Rae1 {[%clk 0:02:25]}  Rc8 {[%clk 0:02:44]} 16. f4 {[%clk 0:02:24]}  Nd7 {[%clk 0:02:34]} 17. e5 {[%clk 0:02:20]}  e6 {[%clk 0:02:17]} 18. Ncb5 {[%clk 0:02:16]}  Ba6 {[%clk 0:01:58]} 19. Ra1 {[%clk 0:01:39]}  Bxb5 {[%clk 0:01:42]} 20. Nxb5 {[%clk 0:01:40]}  dxe5 {[%clk 0:01:35]} 21. Rxa7 {[%clk 0:01:41]}  Nf8 {[%clk 0:00:54]} 22. Nd6 {[%clk 0:01:39]}  e4 {[%clk 0:00:20]} 23. Rxf7+ {[%clk 0:01:33]}  Kg8 {[%clk 0:00:19]} 24. Qd4 {[%clk 0:01:32]}  e5 {[%clk 0:00:17]} 25. fxe5 {[%clk 0:01:33]}  Rc5 {[%clk 0:00:11]} 26. c3 {[%clk 0:01:28]}  Rexe5 {[%clk 0:00:04]} 27. Rxf8+ {[%clk 0:01:27]}  Qxf8 {[%clk 0:00:05]} 28. Rxf8+ {[%clk 0:01:28]}  Kxf8 {[%clk 0:00:06]} 29. Nxe4 {[%clk 0:01:27]}  Rcd5 {[%clk 0:00:06]} 30. Qf2+ {[%clk 0:01:20]}  Ke8 {[%clk 0:00:06]} 31. Nf6+ {[%clk 0:01:20]} 1-0


[Site "https://www.chess.com"]

[Event "Titled Tuesday Blitz June 14 Early 2022"]
[White "Bilych, Olexiy"]
[Black "Kollars, Dmitrij"]
[WhiteFideId "14156504"]
[BlackFideId "12909572"]
[WhiteElo "2189"]
[BlackElo "2584"]
[Result "0-1"]
[Round "04"]
[TimeControl "180+1"]
[Date "2022.06.14"]
[WhiteClock "0:00:14"]
[BlackClock "0:00:25"]

1. e4 {[%clk 0:03:00]}  c6 {[%clk 0:02:56]} 2. d4 {[%clk 0:03:00]}  d5 {[%clk 0:02:57]} 3. e5 {[%clk 0:03:00]}  Bf5 {[%clk 0:02:56]} 4. h4 {[%clk 0:03:01]}  h5 {[%clk 0:02:56]} 5. Bd3 {[%clk 0:03:01]}  Bxd3 {[%clk 0:02:56]} 6. Qxd3 {[%clk 0:03:02]}  Qa5+ {[%clk 0:02:56]} 7. Nd2 {[%clk 0:03:02]}  e6 {[%clk 0:02:55]} 8. Nf3 {[%clk 0:03:02]}  Nh6 {[%clk 0:02:56]} 9. O-O {[%clk 0:03:02]}  Nf5 {[%clk 0:02:56]} 10. Nb3 {[%clk 0:03:03]}  Qa6 {[%clk 0:02:53]} 11. Qd1 {[%clk 0:03:03]}  Nd7 {[%clk 0:02:49]} 12. a4 {[%clk 0:02:52]}  b6 {[%clk 0:02:46]} 13. Bg5 {[%clk 0:02:46]}  c5 {[%clk 0:02:46]} 14. c3 {[%clk 0:02:45]}  Rc8 {[%clk 0:02:44]} 15. Re1 {[%clk 0:02:43]}  Qb7 {[%clk 0:02:35]} 16. a5 {[%clk 0:02:23]}  c4 {[%clk 0:02:29]} 17. Nc1 {[%clk 0:02:23]}  b5 {[%clk 0:02:27]} 18. Ne2 {[%clk 0:02:22]}  a6 {[%clk 0:02:23]} 19. Nf4 {[%clk 0:02:15]}  Be7 {[%clk 0:02:09]} 20. Bxe7 {[%clk 0:02:13]}  Kxe7 {[%clk 0:02:10]} 21. g3 {[%clk 0:02:09]}  g6 {[%clk 0:02:08]} 22. Ng5 {[%clk 0:02:07]}  Rcg8 {[%clk 0:02:02]} 23. Qf3 {[%clk 0:01:56]}  Qc6 {[%clk 0:01:59]} 24. Re2 {[%clk 0:01:48]}  Rg7 {[%clk 0:01:59]} 25. Kh2 {[%clk 0:01:42]}  Kd8 {[%clk 0:01:58]} 26. Ree1 {[%clk 0:01:26]}  Kc8 {[%clk 0:01:57]} 27. Qe2 {[%clk 0:01:25]}  Kb8 {[%clk 0:01:55]} 28. Qc2 {[%clk 0:01:24]}  Ka8 {[%clk 0:01:54]} 29. Kg2 {[%clk 0:01:21]}  Rb8 {[%clk 0:01:54]} 30. b4 {[%clk 0:01:14]}  cxb3 {[%clk 0:01:53]} 31. Qxb3 {[%clk 0:01:15]}  Nf8 {[%clk 0:01:47]} 32. Nd3 {[%clk 0:01:10]}  Nh7 {[%clk 0:01:41]} 33. Nf3 {[%clk 0:01:01]}  g5 {[%clk 0:01:40]} 34. hxg5 {[%clk 0:00:53]}  Nxg5 {[%clk 0:01:41]} 35. Nc5 {[%clk 0:00:46]}  Nxf3 {[%clk 0:01:23]} 36. Kxf3 {[%clk 0:00:47]}  Rbg8 {[%clk 0:01:23]} 37. Rh1 {[%clk 0:00:41]}  Rg4 {[%clk 0:01:04]} 38. Rad1 {[%clk 0:00:41]}  h4 {[%clk 0:01:04]} 39. gxh4 {[%clk 0:00:38]}  Nxh4+ {[%clk 0:00:57]} 40. Ke2 {[%clk 0:00:39]}  Ng6 {[%clk 0:00:55]} 41. Qc2 {[%clk 0:00:37]}  Nxe5 {[%clk 0:00:53]} 42. Rh7 {[%clk 0:00:32]}  Nd7 {[%clk 0:00:46]} 43. Nd3 {[%clk 0:00:30]}  Rxd4 {[%clk 0:00:41]} 44. Rxf7 {[%clk 0:00:24]}  Rc8 {[%clk 0:00:39]} 45. Qd2 {[%clk 0:00:19]}  Rxd3 {[%clk 0:00:31]} 46. Qxd3 {[%clk 0:00:20]}  Ne5 {[%clk 0:00:32]} 47. Qh7 {[%clk 0:00:19]}  Qc4+ {[%clk 0:00:29]} 48. Ke1 {[%clk 0:00:15]}  Qxc3+ {[%clk 0:00:28]} 49. Kf1 {[%clk 0:00:16]}  Qc4+ {[%clk 0:00:28]} 50. Kg1 {[%clk 0:00:14]}  Qg4+ {[%clk 0:00:26]} 51. Kh2 {[%clk 0:00:14]}  Nxf7 {[%clk 0:00:25]} 0-1


[Site "https://www.chess.com"]